bitfinex/quotes_BTCUSD_20240826
["timestamp","ask_amount","ask_price","bid_price","bid_amount"]
[1724667660608,0.01170889,64064.0,64063.0,0.156096]
[1724667661081,0.01170889,64064.0,64062.0,0.156098]
[1724667661283,0.01170889,64064.0,64063.0,0.468288]
[1724667661687,0.01270889,64064.0,64063.0,0.469288]
[1724667661882,0.01270889,64064.0,64063.0,0.156096]
[1724667662259,0.01370889,64064.0,64063.0,0.156096]
[1724667662668,0.01370889,64064.0,64059.0,0.728109]
[1724667662906,0.01370889,64064.0,64057.0,0.0009075]
[1724667662907,0.15617801,64063.0,64057.0,0.0009075]
[1724667663109,0.312198,64062.0,64057.0,0.0009075]
[1724667663310,0.156105,64060.0,64057.0,0.0009075]
[1724667663567,0.15617801,64059.0,64057.0,0.0009075]
[1724667663772,0.16706357,64059.0,64057.0,0.0009075]
[1724667663950,0.32316957,64059.0,64057.0,0.0009075]
[1724667665242,0.32316957,64059.0,64057.0,0.0039075]
[1724667666247,0.16706357,64059.0,64057.0,0.0039075]
[1724667666447,0.32316957,64059.0,64057.0,0.0079075]
[1724667666824,0.16706357,64059.0,64057.0,0.0079075]
[1724667667442,0.32316957,64059.0,64057.0,0.0079075]
[1724667668162,0.156108,64058.0,64057.0,0.0079075]
[1724667668363,0.32316991,64058.0,64057.0,0.0079075]
[1724667669257,0.32316991,64058.0,64057.0,0.0039075]
[1724667669535,0.32316991,64058.0,64057.0,0.0089075]
[1724667669963,0.32316991,64058.0,64057.0,0.0059075]
[1724667670365,0.32316991,64058.0,64057.0,0.0099075]
[1724667670621,0.16706191,64058.0,64057.0,0.0099075]
[1724667670837,0.16706191,64058.0,64057.0,0.8979385]
[1724667670999,0.16706191,64058.0,64057.0,0.4296075]
[1724667671201,0.16806191,64058.0,64057.0,0.4296075]
[1724667671578,0.16806191,64058.0,64057.0,0.5857175]
[1724667671767,0.16806191,64058.0,64057.0,0.5807175]
[1724667672201,0.16806191,64058.0,64057.0,0.8929385]
[1724667677882,0.16806191,64058.0,64057.0,0.4692385]
[1724667681400,0.16806191,64058.0,64057.0,0.1570175]
[1724667681648,0.16806191,64058.0,64057.0,0.0009075]
[1724667687188,1.42272499,64058.0,64057.0,0.0009075]
[1724667687619,1.57883299,64058.0,64057.0,0.0009075]
[1724667687966,1.89104999,64058.0,64057.0,0.0009075]
[1724667688360,2.20326699,64058.0,64057.0,0.0009075]
[1724667689619,2.27332776,64058.0,64057.0,0.0009075]
[1724667689844,2.37345418,64058.0,64057.0,0.0009075]
[1724667690483,2.37346103,64058.0,64057.0,0.0009075]
[1724667691509,2.30326699,64058.0,64057.0,0.0009075]
[1724667692555,2.39684992,64058.0,64057.0,0.0009075]
[1724667693633,2.30326699,64058.0,64057.0,0.0009075]
[1724667696114,2.37346557,64058.0,64057.0,0.0009075]
[1724667696318,2.30326699,64058.0,64057.0,0.0009075]
[1724667696531,2.3734623,64058.0,64057.0,0.0009075]
[1724667697413,2.6856793,64058.0,64057.0,0.0009075]
[1724667698265,2.3734623,64058.0,64057.0,0.0009075]
[1724667699086,2.3742873,64058.0,64057.0,0.0009075]
[1724667699293,2.3742873,64058.0,64057.0,0.2204075]
[1724667699507,2.3742873,64058.0,64057.0,0.0009075]
[1724667704477,2.30409199,64058.0,64057.0,0.0009075]
[1724667706808,2.30409199,64058.0,64057.0,0.1827075]
[1724667709464,2.30409199,64058.0,64057.0,0.0009075]
[1724667712030,2.30409199,64058.0,64057.0,0.10885172]
[1724667712159,1.99187499,64058.0,64057.0,0.10885172]
[1724667712376,1.99187499,64058.0,64057.0,0.33155172]
[1724667713410,2.30409199,64058.0,64057.0,0.33155172]
[1724667714415,2.37430064,64058.0,64057.0,0.33155172]
[1724667715310,2.37430286,64058.0,64057.0,0.33155172]
[1724667717103,2.30409199,64058.0,64057.0,0.33155172]
[1724667717305,2.37430286,64058.0,64057.0,0.33155172]
[1724667719680,2.06208586,64058.0,64057.0,0.33155172]
[1724667720348,2.06308586,64058.0,64057.0,0.33155172]
[1724667722275,1.99287499,64058.0,64057.0,0.33155172]
[1724667722486,2.06308586,64058.0,64057.0,0.33155172]
[1724667722892,1.99287499,64058.0,64057.0,0.33155172]
[1724667725302,2.08648948,64058.0,64057.0,0.33155172]
[1724667726403,2.08648948,64058.0,64057.0,0.2236075]
[1724667726757,2.1098931,64058.0,64057.0,0.2236075]
[1724667726962,1.99287499,64058.0,64057.0,0.2236075]
[1724667727593,2.1098931,64058.0,64057.0,0.2236075]
[1724667728536,2.10999221,64058.0,64057.0,0.2236075]
[1724667728739,1.99287499,64058.0,64057.0,0.2236075]
[1724667729570,2.10999221,64058.0,64057.0,0.2236075]
[1724667730103,1.99287499,64058.0,64057.0,0.2236075]
[1724667730461,2.10999221,64058.0,64057.0,0.2236075]
[1724667733312,1.99287499,64058.0,64057.0,0.2236075]
[1724667745123,1.52454999,64058.0,64057.0,0.2236075]
[1724667745302,1.67965799,64058.0,64057.0,0.52045172]
[1724667745504,1.99287499,64058.0,64057.0,0.4125075]
[1724667750247,1.99187499,64058.0,64057.0,0.4125075]
[1724667750572,1.99287499,64058.0,64057.0,0.4125075]
[1724667752428,2.30509199,64058.0,64057.0,0.4125075]
[1724667752865,1.99287499,64058.0,64057.0,0.4125075]
[1724667753055,1.67965799,64058.0,64057.0,0.4125075]
[1724667753869,1.99187499,64058.0,64057.0,0.4125075]
[1724667754072,2.30509199,64058.0,64057.0,0.0009075]
[1724667759997,2.61730899,64058.0,64057.0,0.0009075]
[1724667760324,2.75796644,64058.0,64057.0,0.0009075]
[1724667760525,2.81660899,64058.0,64057.0,0.0009075]
[1724667760736,3.24592599,64058.0,64057.0,0.0009075]
[1724667761351,3.24492599,64058.0,64057.0,0.0009075]
[1724667761753,3.24692599,64058.0,64057.0,0.0019075]
[1724667762000,3.24892599,64058.0,64057.0,0.0029075]
[1724667762210,3.24492599,64058.0,64057.0,0.0009075]
[1724667762602,3.40504175,64058.0,64057.0,0.0019075]
[1724667763035,3.40304175,64058.0,64057.0,0.0009075]
[1724667763262,3.24492599,64058.0,64057.0,0.0009075]
[1724667763473,3.2567531,64058.0,64057.0,0.0009075]
[1724667763642,3.2587531,64058.0,64057.0,0.0019075]
[1724667763842,3.24692599,64058.0,64057.0,0.0019075]
[1724667764277,3.12782599,64058.0,64057.0,0.0009075]
[1724667764623,3.13182599,64058.0,64057.0,0.0019075]
[1724667764829,3.13382599,64058.0,64057.0,0.0029075]
[1724667765229,3.12782599,64058.0,64057.0,0.0009075]
[1724667765435,3.13382599,64058.0,64057.0,0.0029075]
[1724667765644,2.95752599,64058.0,64057.0,0.0029075]
[1724667766063,2.7857908,64058.0,64057.0,0.0029075]
[1724667766266,2.81025484,64058.0,64057.0,0.0029075]
[1724667766469,2.80751557,64058.0,64057.0,0.0029075]
[1724667766673,2.66703376,64058.0,64057.0,0.0029075]
[1724667768563,2.66703376,64058.0,64057.0,0.4202075]
[1724667770719,2.80751557,64058.0,64057.0,0.4202075]
[1724667770861,2.66703376,64058.0,64057.0,0.4202075]
[1724667772528,2.35481676,64058.0,64057.0,0.4202075]
[1724667772743,1.55127476,64058.0,64057.0,0.4202075]
[1724667772948,1.55127476,64058.0,64057.0,0.68426172]
[1724667772949,1.61128979,64058.0,64057.0,0.68426172]
[1724667773119,1.51766609,64058.0,64057.0,0.68426172]
[1724667773324,1.51766609,64058.0,64057.0,0.52815172]
[1724667773518,1.56447705,64058.0,64057.0,0.52815172]
[1724667773719,1.55847705,64058.0,64057.0,0.68226172]
[1724667774173,1.56147705,64058.0,64057.0,0.52715172]
[1724667774672,1.56047593,64058.0,64057.0,0.68326172]
[1724667774996,1.56147593,64058.0,64057.0,0.52615172]
[1724667775198,1.56347593,64058.0,64057.0,0.68226172]
[1724667775396,1.56347593,64058.0,64057.0,0.52615172]
[1724667777066,1.51666609,64058.0,64057.0,0.52615172]
[1724667778290,1.56347593,64058.0,64057.0,0.52615172]
[1724667778496,1.57059773,64058.0,64057.0,0.52615172]
[1724667778907,1.67989589,64058.0,64057.0,0.52615172]
[1724667780569,1.72670573,64058.0,64057.0,0.52615172]
[1724667780967,1.67989589,64058.0,64057.0,0.52615172]
[1724667781801,1.67989589,64058.0,64057.0,0.52615172]
[1724667782414,1.99211289,64058.0,64057.0,0.52615172]
[1724667787719,1.52378789,64058.0,64057.0,0.52615172]
[1724667787969,1.67989589,64058.0,64057.0,0.52615172]
[1724667789082,1.52378789,64058.0,64057.0,0.52615172]
[1724667789330,1.67989589,64058.0,64057.0,0.52615172]
[1724667790478,0.26912481,64058.0,64057.0,0.99448272]
[1724667790703,0.26200301,64058.0,64057.0,0.99448272]
[1724667790905,0.105825,64058.0,64057.0,1.30670372]
[1724667791331,0.102825,64058.0,64057.0,1.30670372]
[1724667791520,0.100825,64058.0,64057.0,1.30670372]
[1724667791729,0.103825,64058.0,64057.0,1.63683613]
[1724667791937,0.000825,64064.0,64062.0,1.017792]
[1724667792141,0.000825,64064.0,64062.0,1.63194463]
[1724667793680,0.000825,64064.0,64062.0,1.63694463]
[1724667794074,0.000825,64064.0,64062.0,1.63194463]
[1724667794482,0.000825,64064.0,64062.0,1.64094463]
[1724667794688,0.000825,64064.0,64062.0,1.54000041]
[1724667794940,0.000825,64064.0,64062.0,0.897695]
[1724667795151,0.000825,64064.0,64062.0,0.4294]
[1724667795362,0.156921,64063.0,64062.0,0.4294]
[1724667795580,0.469113,64063.0,64062.0,0.4294]
[1724667795767,0.156921,64063.0,64062.0,0.4294]
[1724667796130,0.469113,64063.0,64062.0,0.4294]
[1724667796351,0.156921,64063.0,64062.0,0.4294]
[1724667796552,0.000825,64063.0,64062.0,0.4294]
[1724667796767,0.156921,64063.0,64062.0,0.4294]
[1724667798344,0.469113,64063.0,64062.0,0.4294]
[1724667801913,0.469113,64063.0,64062.0,0.2523]
[1724667801914,1.24967501,64063.0,64062.0,0.2523]
[1724667802112,1.24967501,64063.0,64062.0,0.016]
[1724667802848,1.24967501,64063.0,64062.0,0.009]
[1724667803051,1.24967501,64063.0,64062.0,0.001]
[1724667803290,1.25346941,64063.0,64062.0,0.001]
[1724667803648,1.25546941,64063.0,64062.0,0.002]
[1724667803905,1.25346941,64063.0,64062.0,0.001]
[1724667804080,0.468325,64058.0,64057.0,0.0009075]
[1724667804842,0.780542,64058.0,64057.0,0.0009075]
[1724667805271,0.7843364,64058.0,64057.0,0.0009075]
[1724667806688,1.93414841,64058.0,64057.0,0.0009075]
[1724667807122,2.03057124,64058.0,64057.0,0.0009075]
[1724667807333,2.05392694,64058.0,64057.0,0.0009075]
[1724667807535,1.93814841,64058.0,64057.0,0.0009075]
[1724667807941,2.16287116,64058.0,64057.0,0.0009075]
[1724667808149,2.05492694,64058.0,64057.0,0.0009075]
[1724667808970,2.05497288,64058.0,64057.0,0.0009075]
[1724667810432,3.30963596,64058.0,64057.0,0.0009075]
[1724667810830,3.33263596,64058.0,64057.0,0.0009075]
[1724667811261,3.21581149,64058.0,64057.0,0.0009075]
[1724667815450,2.51239449,64058.0,64057.0,0.1911075]
[1724667815860,2.58248598,64058.0,64057.0,0.1911075]
[1724667817122,2.58331098,64058.0,64057.0,0.1911075]
[1724667819830,2.58231098,64058.0,64057.0,0.1911075]
[1724667820386,2.51221949,64058.0,64057.0,0.1911075]
[1724667823019,3.31955673,64058.0,64057.0,0.0009075]
[1724667823235,3.20273649,64058.0,64057.0,0.0009075]
[1724667823860,3.20173649,64058.0,64057.0,0.0009075]
[1724667824070,3.3155467,64058.0,64057.0,0.0009075]
[1724667824280,2.37710062,64058.0,64057.0,0.0029075]
[1724667824482,2.26029041,64058.0,64057.0,0.0029075]
[1724667824717,2.36423463,64058.0,64057.0,0.0009075]
[1724667824895,2.25629041,64058.0,64057.0,0.0009075]
[1724667825099,2.52952264,64058.0,64057.0,0.0009075]
[1724667825299,2.36723463,64058.0,64057.0,0.0019075]
[1724667825647,2.36423463,64058.0,64057.0,0.0009075]
[1724667826054,2.37023463,64058.0,64057.0,0.0019075]
[1724667826477,2.36423463,64058.0,64057.0,0.0009075]
[1724667826863,2.37423463,64058.0,64057.0,0.0019075]
[1724667827819,2.37423463,64058.0,64057.0,0.0029075]
[1724667827820,2.38423463,64058.0,64057.0,0.0029075]
[1724667828184,2.38423463,64058.0,64057.0,0.0019075]
[1724667828185,2.37423463,64058.0,64057.0,0.0019075]
[1724667828516,2.52430561,64058.0,64057.0,0.0029075]
[1724667831509,2.38423463,64058.0,64057.0,0.0029075]
[1724667833167,2.10089041,64058.0,64057.0,0.0029075]
[1724667833453,3.28459771,64058.0,64057.0,0.0029075]
[1724667836948,3.17665349,64058.0,64057.0,0.0029075]
[1724667837184,3.28459771,64058.0,64057.0,0.0029075]
[1724667839675,3.17665349,64058.0,64057.0,0.0029075]
[1724667839877,3.28459771,64058.0,64057.0,0.0029075]
[1724667840317,3.17665349,64058.0,64057.0,0.0029075]
[1724667840499,3.28459771,64058.0,64057.0,0.0029075]
[1724667841813,3.42470757,64058.0,64057.0,0.0029075]
[1724667842216,3.59790428,64058.0,64057.0,0.0029075]
[1724667842392,3.42470757,64058.0,64057.0,0.0029075]
[1724667842606,3.59804834,64058.0,64057.0,0.0029075]
[1724667842800,3.45793848,64058.0,64057.0,0.0029075]
[1724667843206,3.59809468,64058.0,64057.0,0.0029075]
[1724667843405,3.45793848,64058.0,64057.0,0.0029075]
[1724667844676,3.45793911,64058.0,64057.0,0.0029075]
[1724667847593,3.63853911,64058.0,64057.0,0.0029075]
[1724667848628,3.45793911,64058.0,64057.0,0.0029075]
[1724667850049,3.61566758,64058.0,64057.0,0.0029075]
[1724667850374,3.45793911,64058.0,64057.0,0.0029075]
[1724667851736,3.77443911,64058.0,64057.0,0.0029075]
[1724667852907,3.79890804,64058.0,64057.0,0.0029075]
[1724667855775,3.66442067,64058.0,64057.0,0.0029075]
[1724667855981,3.48292067,64058.0,64057.0,0.0029075]
[1724667858241,2.72654245,64058.0,64057.0,0.4008075]
[1724667858443,2.38985652,64058.0,64057.0,0.4008075]
[1724667858592,2.32394671,64058.0,64057.0,0.4008075]
[1724667859263,2.30394671,64058.0,64057.0,0.3988075]
[1724667859432,2.00079983,64058.0,64057.0,0.3988075]
[1724667859635,2.01279983,64058.0,64057.0,0.4008075]
[1724667861119,1.89578549,64058.0,64057.0,0.4008075]
[1724667862151,1.98936627,64058.0,64057.0,0.4008075]
[1724667864207,1.52104127,64058.0,64057.0,0.5569175]
[1724667864409,1.47424435,64058.0,64057.0,0.5569175]
[1724667864614,1.42746049,64058.0,64057.0,0.8691385]
[1724667864853,1.42746049,64058.0,64057.0,0.5569175]
[1724667865357,1.42146049,64058.0,64057.0,0.5559175]
[1724667865571,1.42646049,64058.0,64057.0,0.5559175]
[1724667865708,1.42046049,64058.0,64057.0,0.5559175]
[1724667865893,1.42446049,64058.0,64057.0,0.5569175]
[1724667866102,1.42446049,64058.0,64057.0,0.5559175]
[1724667866103,0.16479741,64058.0,64057.0,0.5559175]
[1724667866302,0.16579741,64058.0,64057.0,0.5559175]
[1724667866711,0.0096194,64058.0,64057.0,1.1803595]
[1724667868416,0.0086194,64058.0,64057.0,1.1803595]
[1724667868701,0.0086194,64058.0,64057.0,1.1793595]
[1724667868702,0.0046194,64058.0,64057.0,1.1793595]
[1724667869121,0.0046194,64058.0,64057.0,1.1803595]
[1724667870184,0.0046194,64058.0,64057.0,0.8681385]
[1724667875093,0.0046194,64058.0,64057.0,0.5559175]
[1724667875298,0.0046194,64058.0,64057.0,0.8681385]
[1724667876037,0.0046194,64058.0,64057.0,0.5559175]
[1724667877239,0.0046194,64058.0,64057.0,0.3998075]
[1724667879451,0.1607274,64058.0,64057.0,0.3998075]
[1724667882694,0.0046194,64058.0,64057.0,0.3998075]
[1724667886510,0.0046194,64058.0,64057.0,0.5559175]
[1724667891490,0.0076194,64058.0,64057.0,0.8681385]
[1724667895714,0.0076194,64058.0,64057.0,0.5559175]
[1724667898511,0.0046194,64058.0,64057.0,1.4935805]
[1724667898725,0.0046194,64058.0,64057.0,1.19828865]
[1724667899855,0.0046194,64058.0,64057.0,0.57284665]
[1724667900640,0.0046194,64058.0,64057.0,0.57284986]
[1724667901041,0.0046194,64058.0,64057.0,0.88507086]
[1724667902661,0.0046194,64058.0,64057.0,0.88507156]
[1724667903294,0.31690541,64058.0,64057.0,0.41674056]
[1724667903527,0.31690541,64058.0,64057.0,0.0019075]
[1724667903528,1.18448363,64058.0,64057.0,0.0019075]
[1724667903724,1.66510063,64058.0,64057.0,0.0019075]
[1724667904107,1.67252933,64058.0,64057.0,0.0019075]
[1724667904316,2.06053081,64058.0,64057.0,0.0019075]
[1724667904734,2.06453081,64058.0,64057.0,0.0029075]
[1724667904941,1.97685446,64058.0,64057.0,0.0029075]
[1724667905112,2.06416337,64058.0,64057.0,0.0029075]
[1724667905311,2.06016337,64058.0,64057.0,0.0009075]
[1724667905511,1.97286936,64058.0,64057.0,0.0009075]
[1724667906147,1.98086936,64058.0,64057.0,0.0029075]
[1724667906516,1.97686936,64058.0,64057.0,0.0019075]
[1724667906987,1.98086936,64058.0,64057.0,0.0029075]
[1724667907193,1.84039705,64058.0,64057.0,0.0029075]
[1724667907339,1.83939705,64058.0,64057.0,0.0029075]
[1724667907764,3.09406013,64058.0,64057.0,0.0029075]
[1724667907963,2.79146013,64058.0,64057.0,0.0029075]
[1724667908430,1.74686491,64058.0,64057.0,0.2280075]
[1724667908592,1.74686491,64058.0,64057.0,0.4047075]
[1724667908803,1.84048173,64058.0,64057.0,0.4047075]
[1724667909063,2.17610627,64058.0,64057.0,0.4047075]
[1724667909198,2.05908191,64058.0,64057.0,0.4047075]
[1724667909377,2.05508191,64058.0,64057.0,0.4037075]
[1724667909582,2.05108191,64058.0,64057.0,0.4027075]
[1724667909878,2.36629891,64058.0,64057.0,0.2260075]
[1724667910735,2.37029891,64058.0,64057.0,0.2260075]
[1724667911301,2.36629891,64058.0,64057.0,0.2260075]
[1724667911732,2.37029891,64058.0,64057.0,0.2260075]
[1724667912756,2.48731606,64058.0,64057.0,0.2260075]
[1724667913608,2.37029891,64058.0,64057.0,0.2260075]
[1724667913879,1.11563583,64058.0,64057.0,0.2260075]
[1724667914118,1.23265046,64058.0,64057.0,0.2260075]
[1724667915313,0.92043346,64058.0,64057.0,0.2260075]
[1724667916068,0.80341883,64058.0,64057.0,0.2260075]
[1724667916316,0.17148712,64058.0,64057.0,0.3923075]
[1724667916554,0.08182592,64058.0,64057.0,0.3923075]
[1724667916755,0.0116194,64058.0,64057.0,0.3923075]
[1724667917004,0.05842322,64058.0,64057.0,0.3923075]
[1724667917864,0.0116194,64058.0,64057.0,0.3923075]
[1724667920921,0.05842654,64058.0,64057.0,0.3923075]
[1724667921127,0.0116194,64058.0,64057.0,0.3923075]
[1724667921323,0.05842632,64058.0,64057.0,0.5484175]
[1724667921553,0.0116194,64058.0,64057.0,0.5484175]
[1724667921909,0.05842735,64058.0,64057.0,0.3923075]
[1724667922262,0.0116194,64058.0,64057.0,0.3923075]
[1724667924217,0.1677274,64058.0,64057.0,0.3923075]
[1724667925455,0.4799444,64058.0,64057.0,0.3923075]
[1724667925654,0.23793919,64058.0,64057.0,0.3923075]
[1724667928115,0.08183119,64058.0,64057.0,0.3923075]
[1724667930271,0.0116194,64058.0,64057.0,0.3923075]
[1724667930478,0.08183119,64058.0,64057.0,0.3923075]
[1724667931573,0.0116194,64058.0,64057.0,1.90524572]
[1724667931792,0.000825,64064.0,64057.0,1.90524572]
[1724667931793,0.000825,64064.0,64062.0,0.647595]
[1724667931994,0.000825,64064.0,64062.0,1.74811123]
[1724667932196,0.000825,64064.0,64062.0,2.06030823]
[1724667932400,0.000825,64064.0,64062.0,2.08644006]
[1724667933620,0.000825,64064.0,64062.0,2.10044006]
[1724667934047,0.000825,64064.0,64062.0,2.08644006]
[1724667934346,0.000825,64064.0,64062.0,2.10044006]
[1724667934545,0.000825,64064.0,64062.0,2.11444006]
[1724667935945,0.000825,64064.0,64062.0,1.85031783]
[1724667936140,0.000825,64064.0,64062.0,1.95826205]
[1724667936355,0.000825,64064.0,64062.0,1.93213022]
[1724667936561,0.000825,64064.0,64062.0,1.95826936]
[1724667937131,0.000825,64064.0,64062.0,1.93213022]
[1724667937240,0.000825,64064.0,64062.0,1.95827344]
[1724667938628,0.000825,64064.0,64062.0,1.85032922]
[1724667938838,0.000825,64064.0,64062.0,1.93213022]
[1724667939040,0.000825,64064.0,64062.0,1.95827344]
[1724667940075,0.000825,64064.0,64062.0,1.93213022]
[1724667940308,0.000825,64064.0,64062.0,1.95827122]
[1724667940554,0.44788599,64079.0,64078.0,0.468178]
[1724667940814,1.25466308,64083.0,64080.0,0.156054]
[1724667941044,1.25466308,64083.0,64078.0,0.312119]
[1724667941045,0.15717801,64082.0,64081.0,0.156052]
[1724667941681,0.15617801,64082.0,64080.0,0.156054]
[1724667941915,0.003,64081.0,64080.0,0.156054]
[1724667942121,0.003,64080.0,64079.0,0.156056]
[1724667942321,0.003,64080.0,64077.0,0.312123]
[1724667942473,0.01000322,64080.0,64079.0,0.156057]
[1724667943683,0.01000322,64080.0,64079.0,0.164057]
[1724667943900,0.01000322,64080.0,64079.0,0.156057]
[1724667944901,0.00900322,64080.0,64079.0,0.468171]
[1724667945111,0.01000322,64080.0,64079.0,0.468171]
[1724667945551,0.01000322,64080.0,64079.0,0.156057]
[1724667946004,0.00700322,64080.0,64079.0,1.000785]
[1724667946222,0.00700322,64080.0,64079.0,0.997785]
[1724667946545,0.00700322,64080.0,64079.0,1.000785]
[1724667946759,0.003,64086.0,64085.0,0.156042]
[1724667947171,0.01002169,64086.0,64085.0,0.156042]
[1724667947363,0.003,64086.0,64085.0,0.156042]
[1724667947635,0.01002169,64086.0,64085.0,0.156042]
[1724667947833,0.003,64086.0,64085.0,0.156042]
[1724667948029,0.01002169,64086.0,64085.0,0.156042]
[1724667948282,0.003,64086.0,64085.0,0.156042]
[1724667948664,0.01002169,64086.0,64085.0,0.156042]
[1724667949266,0.00902169,64086.0,64085.0,0.156042]
[1724667949466,0.01002169,64086.0,64085.0,0.156042]
[1724667950206,0.01202169,64086.0,64085.0,0.156042]
[1724667951385,0.01202169,64086.0,64085.0,0.468127]
[1724667952772,0.01202169,64086.0,64085.0,0.686627]
[1724667953950,0.01202169,64086.0,64085.0,0.374542]
[1724667954350,0.01102169,64086.0,64085.0,0.374542]
[1724667954632,0.01202169,64086.0,64082.0,0.2156]
[1724667954842,0.003,64085.0,64084.0,0.156043]
[1724667955047,0.003,64085.0,64079.0,0.312113]
[1724667955048,0.001,64083.0,64079.0,0.312113]
[1724667955267,0.33397801,64083.0,64080.0,0.156053]
[1724667955446,0.00704324,64082.0,64080.0,0.156053]
[1724667955703,0.00704324,64082.0,64081.0,0.156052]
[1724667955905,0.00704324,64082.0,64080.0,0.156054]
[1724667956584,0.31927125,64082.0,64079.0,0.156056]
[1724667957019,0.31223001,64081.0,64077.0,0.15606]
[1724667957221,0.15617801,64081.0,64080.0,0.001]
[1724667957427,0.31223001,64081.0,64080.0,0.001]
[1724667957782,0.31223001,64081.0,64077.0,0.15606]
[1724667958016,0.156055,64080.0,64077.0,0.15606]
[1724667958216,0.156055,64080.0,64077.0,0.15806]
[1724667958575,0.15617801,64081.0,64077.0,0.15806]
[1724667958775,0.31223101,64081.0,64077.0,0.15806]
[1724667958973,0.156055,64080.0,64077.0,0.15806]
[1724667959183,0.31223101,64081.0,64077.0,0.15806]
[1724667959420,0.156055,64080.0,64077.0,0.15606]
[1724667959817,0.156055,64080.0,64076.0,0.2156]
[1724667960016,0.15617801,64081.0,64077.0,0.156061]
[1724667960492,0.312119,64078.0,64077.0,0.002]
[1724667960700,0.312119,64078.0,64067.0,0.312172]
[1724667960701,0.46829701,64078.0,64072.0,0.2068]
[1724667960961,0.156065,64076.0,64072.0,0.362873]
[1724667961178,0.156065,64076.0,64072.0,0.2068]
[1724667961179,0.15617801,64075.0,64072.0,0.2068]
[1724667961382,0.15617801,64075.0,64071.0,0.1712]
[1724667961383,0.156071,64073.0,64068.0,0.378]
[1724667961586,0.31224901,64073.0,64069.0,0.15608]
[1724667961760,0.156074,64072.0,64069.0,0.15608]
[1724667961986,0.15617801,64073.0,64069.0,0.15608]
[1724667962115,0.31225001,64073.0,64069.0,0.15608]
[1724667962340,0.31225001,64073.0,64070.0,0.156078]
[1724667962590,0.15617801,64073.0,64070.0,0.156078]
[1724667963481,0.15617801,64072.0,64068.0,0.378]
[1724667963709,0.15617801,64072.0,64068.0,0.534083]
[1724667963909,0.156077,64071.0,64070.0,0.01]
[1724667964120,0.15617801,64072.0,64070.0,0.01]
[1724667964278,0.468229,64071.0,64070.0,0.018]
[1724667964478,0.31225201,64072.0,64070.0,0.018]
[1724667964696,0.31225201,64072.0,64069.0,0.156081]
[1724667964898,0.15617801,64072.0,64069.0,0.156081]
[1724667965096,0.15617801,64072.0,64070.0,0.003]
[1724667965513,0.15617801,64072.0,64070.0,0.159078]
[1724667966547,0.1559902,64072.0,64070.0,0.156078]
[1724667967210,0.1559902,64072.0,64070.0,0.161078]
[1724667967347,0.1559902,64072.0,64070.0,0.005]
[1724667967547,0.1559902,64072.0,64070.0,0.007]
[1724667968162,0.16355452,64071.0,64070.0,0.007]
[1724667968374,0.31973253,64071.0,64070.0,0.007]
[1724667969205,0.63188553,64071.0,64070.0,0.007]
[1724667969406,0.73982975,64071.0,64070.0,0.005]
[1724667969818,0.42767675,64071.0,64070.0,0.008]
[1724667970019,0.42767675,64071.0,64070.0,0.003]
[1724667970227,0.156079,64070.0,64069.0,0.0009075]
[1724667970426,0.31225701,64070.0,64069.0,0.0009075]
[1724667970596,0.63190066,64070.0,64069.0,0.0009075]
[1724667971373,0.63190066,64070.0,64069.0,0.0059075]
[1724667971626,0.63190066,64070.0,64069.0,0.0079075]
[1724667973264,0.31974266,64070.0,64069.0,0.0079075]
[1724667973902,0.63190066,64070.0,64069.0,0.0079075]
[1724667974129,1.24105866,64070.0,64069.0,0.0079075]
[1724667974346,1.64656388,64070.0,64069.0,0.0079075]
[1724667974554,1.88837466,64070.0,64069.0,0.0079075]
[1724667974780,2.02839549,64070.0,64069.0,0.0079075]
[1724667974986,2.09999533,64070.0,64069.0,0.0059075]
[1724667975401,2.04010937,64070.0,64069.0,0.0059075]
[1724667975601,2.09892585,64070.0,64069.0,0.0059075]
[1724667976013,2.09892585,64070.0,64069.0,0.0069075]
[1724667976232,2.04009265,64070.0,64069.0,0.0069075]
[1724667976575,2.23894337,64070.0,64069.0,0.0069075]
[1724667976775,2.23894337,64070.0,64069.0,0.0019075]
[1724667977176,2.04209265,64070.0,64069.0,0.0019075]
[1724667977463,2.04009265,64070.0,64069.0,0.0019075]
[1724667977869,2.04209265,64070.0,64069.0,0.0029075]
[1724667978071,2.04209265,64070.0,64069.0,0.0019075]
[1724667978273,1.90195527,64070.0,64069.0,0.0029075]
[1724667982389,2.21411327,64070.0,64069.0,0.0029075]
[1724667982605,2.40954227,64070.0,64069.0,0.0029075]
[1724667984101,2.71970027,64070.0,64069.0,0.0009075]
[1724667984307,2.72170027,64070.0,64069.0,0.0019075]
[1724667984531,2.72170027,64070.0,64069.0,0.0029075]
[1724667984733,2.71970027,64070.0,64069.0,0.0019075]
[1724667984969,2.72170027,64070.0,64069.0,0.0019075]
[1724667985378,2.72170027,64070.0,64069.0,0.0029075]
[1724667986409,2.82964449,64070.0,64069.0,0.0029075]
[1724667989770,2.82737723,64070.0,64069.0,0.0029075]
[1724667989993,2.82738484,64070.0,64069.0,0.0029075]
[1724667990208,2.96717483,64070.0,64069.0,0.0029075]
[1724667990412,2.77400548,64070.0,64069.0,0.0029075]
[1724667992444,2.63421549,64070.0,64069.0,0.0029075]
[1724667996602,2.93013716,64070.0,64069.0,0.0029075]
[1724667996808,2.77400548,64070.0,64069.0,0.0029075]
[1724667997219,2.96787159,64070.0,64069.0,0.0029075]
[1724667997426,2.77400548,64070.0,64069.0,0.0029075]
[1724667997639,2.82823597,64070.0,64069.0,0.0029075]
[1724668000181,2.98436765,64070.0,64069.0,0.0029075]
[1724668000394,2.82823597,64070.0,64069.0,0.0029075]
[1724668005148,2.85269821,64070.0,64069.0,0.0029075]
[1724668006033,2.65770958,64059.0,64058.0,0.3679075]
[1724668006236,3.03815106,64059.0,64058.0,0.3679075]
[1724668006438,3.06964543,64059.0,64058.0,0.3679075]
[1724668006845,2.95299637,64059.0,64058.0,0.3679075]
[1724668007048,3.06964543,64059.0,64058.0,0.3679075]
[1724668007197,2.96599637,64059.0,64058.0,0.3689075]
[1724668007605,2.97699637,64059.0,64058.0,0.3699075]
[1724668008007,3.09364543,64059.0,64058.0,0.3699075]
[1724668008866,3.09368402,64059.0,64058.0,0.3699075]
[1724668009608,2.97699637,64059.0,64058.0,0.3699075]
[1724668010237,2.98865247,64059.0,64058.0,0.3699075]
[1724668016590,3.12867765,64059.0,64058.0,0.3699075]
[1724668016791,3.32363282,64059.0,64058.0,0.3699075]
[1724668017258,3.18333944,64059.0,64058.0,0.3699075]
[1724668018507,2.98865247,64059.0,64058.0,0.3699075]
[1724668018704,3.18283238,64059.0,64058.0,0.3699075]
[1724668018918,2.69765247,64059.0,64058.0,0.3699075]
[1724668019336,2.69746462,64059.0,64058.0,0.3699075]
[1724668025789,2.83786815,64059.0,64058.0,0.3699075]
[1724668027537,2.89253348,64059.0,64058.0,0.3699075]